Cogmind - Beta 17 @@@ ROGUE MODE // 2026.08.02 @ 14:17:56 Player: naththebg Result: Destroyed by UV-ZTJ(R) with Subdweller Laser Performance ------------- Evolutions (3) 1500 Regions Visited (7) 1400 Robots Destroyed (143) 715 Value Destroyed (6093) 6093 Prototype IDs (11) 220 Alien Tech Used (0) 0 Bonus (15476) 15476 TOTAL SCORE: 25404 Bonus ------- High Alert Combat Kills 2294 Follower Combat Kills 282 Prayed to X0-1V1 5000 Major X0-1V1 Interference 7200 Entered Garrisons 200 Used RIF Installer 500 Cogmind --------- Core Integrity 0/440 Matter 222/900 Energy 459/480 System Corruption 33% Temperature Cool (6) Movement Treading (233) Ox1 Location -7/Recycling Parts ------- > --- POWER (1) -------- Cooled Ion Engine > --- PROPULSION (3) --- Armored Treads Advanced Treads Advanced Treads (fused) > --- UTILITY (5) ------ Improved Heat Sink High-capacity Storage Unit Hardened Heavy Armor Plating (fused) X0-1V1's Piety Tracker > --- WEAPON (4) ------- Cooled Particle Cannon Cooled Particle Cannon Gauss Rifle Gauss Rifle (fused) > --- INVENTORY (20) --- Subdweller Power Source Light Treads Advanced Treads Improved Utility Shielding Makeshift Ablative Armor Relay Coupler [NC] (31) Relay Coupler [Grunt] (99) Cooled Particle Cannon Enhanced Autogun Enhanced Autogun Gauss Cannon Mini Assault Cannon Precision Grenade Launcher Remote Datajack Remote Datajack Peak State ------------ > --- POWER ------------ Cooled Ion Engine > --- PROPULSION ------- Light Treads Light Treads Light Treads > --- UTILITY ---------- Improved Cooling System High-capacity Storage Unit Advanced Weight Redist. System Relay Coupler [NC] X0-1V1's Piety Tracker > --- WEAPON ----------- Heavy EM Shotgun Heavy EM Shotgun Enhanced Autogun Enhanced Autogun KE Penetrator Gauss Cannon Remote Datajack > --- INVENTORY -------- Cooled Ion Engine Subdweller Power Source Subdweller Power Source Light Treads Light Treads Advanced Heat Sink Advanced Heat Sink Advanced Visual Processing Unit Improved Utility Shielding Improved Utility Shielding Improved Utility Shielding Improved Weapon Shielding Heavy Armor Plating Relay Coupler [NC] Relay Coupler [Grunt] Gauss Cannon Gauss Cannon Gauss Cannon Remote Datajack [Rating: 64] Favorites ----------- Power Cooled Ion Engine Engine Cooled Ion Engine Propulsion Light Treads Treads Light Treads Leg Aluminum Leg Utility High-capacity Storage Unit Device X0-1V1's Piety Tracker Storage High-capacity Storage Unit Processor Advanced Visual Processing Unit Hackware Hacking Suite Protection Hardened Heavy Armor Plating Weapon Enhanced Autogun Energy Gun Medium Laser Energy Cannon Cooled Particle Cannon Ballistic Gun Enhanced Autogun Ballistic Cannon Gauss Cannon Special Weapon Remote Datajack Impact Weapon Heavy Hammer Slashing Weapon Katana Build | -11 -10 -10 -8 -8 -7 -7 -7 ------- Run | Yrd Mat Sub Mat Gar Fac Sto Rec Slots Evolved 6 | . . . 4 . 2 . . Power . | . . . . . . . . Propulsion 2 | . . . 1 . 1 . . Utility 3 | . . . 2 . 1 . . Weapon 1 | . . . 1 . . . . Parts Attached 88 | 7 8 1 16 13 42 . 1 Power 7 | 1 . 1 2 . 3 . . Engine 7 | 1 . 1 2 . 3 . . Core . | . . . . . . . . Reactor . | . . . . . . . . Propulsion 28 | 3 3 . 3 4 15 . . Treads 25 | 1 2 . 3 4 15 . . Leg 3 | 2 1 . . . . . . Wheel . | . . . . . . . . Hover . | . . . . . . . . Flight . | . . . . . . . . Utility 21 | 1 4 . 2 4 9 . 1 Device 7 | . 2 . 1 . 4 . . Storage 2 | 1 1 . . . . . . Processor 2 | . 1 . . . 1 . . Hackware 4 | . . . . 1 3 . . Protection 6 | . . . 1 3 1 . 1 Artifact . | . . . . . . . . Weapon 32 | 2 1 . 9 5 15 . . Energy Gun 5 | 2 1 . 2 . . . . Energy Cannon 2 | . . . . . 2 . . Ballistic Gun 15 | . . . 3 3 9 . . Ballistic Cannon 9 | . . . 4 1 4 . . Launcher . | . . . . . . . . Special Weapon 1 | . . . . 1 . . . Impact Weapon . | . . . . . . . . Slashing Weapon . | . . . . . . . . Piercing Weapon . | . . . . . . . . Special Melee Weapon . | . . . . . . . . Unidentified Prototypes 6 | . 1 . 3 . 2 . . Corrupted Parts 1 | . . . . 1 . . . System Corruption 7 | . . . . 7 . . . Parts Lost 17 | . . . 3 2 12 . . Power 2 | . . . . . 2 . . Propulsion 3 | . . . 1 1 1 . . Utility 4 | . . . 1 1 2 . . Weapon 8 | . . . 1 . 7 . . Highest Loss Streak 3 | . . . 3 1 3 . . To Critical Strikes . | . . . . . . . . Average Backups 17 | 4 7 9 18 19 18 17 18 Power 2 | . 1 1 3 4 3 1 1 Propulsion 3 | 2 4 5 5 3 2 2 2 Utility 5 | . . . . 4 7 4 4 Weapon 5 | . 1 2 9 6 3 7 9 Tool/Special . | . . . . . . . . Unused Backups 41 | . 1 . 2 14 7 . 17 Power 4 | . 1 . 1 . . . 2 Propulsion 5 | . . . . 3 . . 2 Utility 17 | . . . . 6 7 . 4 Weapon 13 | . . . 1 5 . . 7 Tool/Special 2 | . . . . . . . 2 Average Slot Usage (%) 95 | . 99 100 86 96 96 92 92 Engine 7 | . 14 14 8 8 6 7 7 Treads 22 | . 16 28 24 22 21 23 23 Device 16 | . 7 14 16 18 16 15 15 Storage 7 | . 14 14 9 8 6 7 7 Processor 3 | . 5 . . . 5 . . Hackware 2 | . . . . . 5 . . Protection 1 | . . . 1 4 . 7 7 Energy Gun 2 | . 28 28 3 . . . . Energy Cannon 1 | . . . . . . 15 15 Ballistic Gun 20 | . . . 1 26 25 15 15 Ballistic Cannon 3 | . . . 21 4 2 . . Peak Build Rating 64 | 6 19 21 39 54 64 62 62 Average Rating 49 | 3 6 19 35 45 56 60 61 On Entrance 31 | . 6 19 21 39 49 59 62 Avg Prop Armor Cover (%) 9 | 9 . . . . . . . Naked Turns . | . . . . . . . . Heaviest Build 92 | 13 50 50 67 71 92 92 92 Greatest Support 84 | 20 40 40 69 69 84 64 64 Greatest Overweight (x) 1 | . 1 1 1 1 1 1 1 Average Overweight (x) . | . . 1 . . . 1 1 Largest Inventory Capacity 20 | 8 20 20 20 20 20 20 20 Average Capacity 19 | 6 13 20 20 20 20 20 20 Most Carried 20 | 6 8 12 20 20 20 20 20 Average Carried 18 | 4 7 9 18 19 19 17 18 Final Capacity 20 | 8 20 20 20 20 20 20 20 Final Carried 20 | 6 8 12 19 20 14 20 15 Class Distribution -------------------- 26% | Skirmisher 23% | Tank 12% | Gunner 9% | Mutant 8% | Scavenger-Executioner 5% | Executioner 4% | Scavenger-Tank 4% | Scavenger-Skirmisher 4% | Hacker-Skirmisher Dominant Class ---------------- Mutant | -10/Materials Mutant | -10/Subcaves Gunner | -8/Materials Gunner | -8/Garrison Skirmisher | -7/Factory Tank | -7/Storage Tank | -7/Recycling Resources | -11 -10 -10 -8 -8 -7 -7 -7 ----------- Run | Yrd Mat Sub Mat Gar Fac Sto Rec Matter Collected 6287 | 277 63 15 814 1284 3479 69 286 Remotely . | . . . . . . . . Salvage Created 5857 | . 299 159 553 913 3794 92 47 Parts 328 | . 11 13 39 68 195 2 . Haulers Intercepted 5 | . 1 . 4 . . . . Recyclers Shooed 2 | . . . 1 . 1 . . Parts Field Recycled . | . . . . . . . . Retrieved Matter . | . . . . . . . . Parts Self-Destructed 15 | . . 15 . . . . . Prevented 2 | . . 2 . . . . . Parts Restored . | . . . . . . . . Kills | -11 -10 -10 -8 -8 -7 -7 -7 ------- Run | Yrd Mat Sub Mat Gar Fac Sto Rec Combat Hostiles Destroyed 109 | . 3 1 10 29 64 1 1 Melee 2 | . . . . 2 . . . Guns 67 | . 3 1 . 19 44 . . Cannons 31 | . . . 10 8 12 1 . AOE 6 | . . . . . 6 . . Classes Destroyed 19 | . 4 1 4 4 5 . 1 Worker 6 | . . . 1 . 5 . . Builder 3 | . . . 1 . 2 . . Hauler 5 | . 1 . 4 . . . . Recycler 10 | . 1 . 4 . 5 . . Mechanic 1 | . . . . . 1 . . Operator 1 | . . . . . 1 . . Watcher 8 | . 2 . 2 . 3 1 . Swarmer 16 | . . . 3 8 5 . . Cutter 2 | . . . . 2 . . . Grunt 33 | . 3 . 4 7 19 . . Brawler 2 | . . . . . 2 . . Duelist 6 | . . . . 1 5 . . Protector 2 | . . . . . 2 . . Sentry 16 | . . 1 1 4 9 1 . Demolisher 1 | . . . . . 1 . . Specialist 7 | . . . . 1 6 . . Hunter 11 | . . . 2 2 7 . . Programmer 12 | . . . . 4 8 . . Subdweller 1 | . . . . . . . 1 Best Kill Streak 9 | . 4 1 7 3 9 1 1 Combat Bots Only 7 | . 1 1 4 3 7 1 1 Max Kills in Single Turn 4 | . 1 1 2 3 4 1 1 Gunslinging 1 | . . . . 1 1 . . Exploded 4 | . . . . . 4 . . Melee 1 | . . . . 1 . . . Uniques/NPCs Destroyed . | . . . . . . . . Combat | -11 -10 -10 -8 -8 -7 -7 -7 -------- Run | Yrd Mat Sub Mat Gar Fac Sto Rec Hostile Shots Fired 770 | . 12 2 91 165 474 18 8 Missed 255 | . 3 2 26 55 157 9 3 Hits 515 | . 9 . 65 110 317 9 5 Melee 10 | . . . . 3 7 . . Projectile 505 | . 9 . 65 107 310 9 5 AOE 2 | . . . . 2 . . . Critical Strikes 11 | . . . 3 2 6 . . Damage Taken 6562 | . 167 . 916 1473 3809 100 97 Core 748 | . . . 108 189 400 11 40 Absorbed by Shields 186 | . . . . . 186 . . Ignored by Resistances 122 | . . . . 12 110 . . Regen/Repaired (Parts) 121 | . . . . 100 21 . . Core Remaining (%) 84 | 100 . 100 . 52 . . . Volleys Fired 388 | . 17 18 44 76 201 13 19 Largest 5 | . 2 2 3 5 4 2 4 Hottest 136 | . 90 90 120 125 136 60 116 Shots Fired 1097 | . 34 36 129 196 636 22 44 Gun 738 | . 34 36 3 146 507 . 12 Cannon 348 | . . . 126 44 124 22 32 Launcher . | . . . . . . . . Special 11 | . . . . 6 5 . . Kinetic 931 | . . . 129 190 600 . 12 Thermal 134 | . 31 18 . . 31 22 32 Explosive . | . . . . . . . . Electromagnetic 21 | . 3 18 . . . . . Robot Hit Streak 26 | . 17 10 12 12 26 5 11 Robot Miss Streak 7 | . 1 3 7 7 6 6 5 Penetration Max 2 | . . . . . 2 . . Secondary Targets 8 | . . . . 5 3 . . Max Gunslinging Chain 1 | . . . . 1 1 . . Shots Hit Robots 617 | . 29 30 65 112 356 8 17 Core Hits 257 | . 14 8 32 43 156 3 1 Critical Kills 8 | . . . . . 7 . 1 Critical Parts Destroyed 11 | . . . . . 11 . . Critical Strikes 33 | . 1 2 2 2 25 . 1 Burn 3 | . 1 2 . . . . . Meltdown 1 | . . . . . . . 1 Destroy 19 | . . . . . 19 . . Blast 10 | . . . 2 2 6 . . Melee Attacks 6 | . . . . 6 . . . Impact . | . . . . . . . . Slashing 6 | . . . . 6 . . . Piercing . | . . . . . . . . Sneak Attacks . | . . . . . . . . Combat Hostiles . | . . . . . . . . Follow-up Attacks . | . . . . . . . . Damage Inflicted 14071 | . 383 355 1942 2153 8630 215 393 Guns 8057 | . 335 355 37 1342 5815 . 173 Cannons 4613 | . . . 1870 736 1572 215 220 Explosions 1179 | . 44 . . . 1135 . . Melee 58 | . . . . 58 . . . Ramming 164 | . 4 . 35 17 108 . . Kinetic 10994 | . . . 1907 1955 6959 . 173 Thermal 1511 | . 339 186 . 123 428 215 220 Explosive 1135 | . . . . . 1135 . . Electromagnetic 209 | . 40 169 . . . . . Impact . | . . . . . . . . Slashing 58 | . . . . 58 . . . Piercing . | . . . . . . . . Highest Corruption 50 | . . . . 16 49 50 33 Average Corruption 32 | . . . . 7 32 44 33 Corruption Purged . | . . . . . . . . Corruption Blocked . | . . . . . . . . Effects 248 | . . . . 1 187 17 43 Message Errors 52 | . . . . . 38 2 12 Matter Fused 47 | . . . . 1 37 2 7 Heat Flow Errors 30 | . . . . . 20 2 8 Energy Discharges 26 | . . . . . 19 2 5 Parts Rejected 2 | . . . . . 2 . . Data Loss (minor) 33 | . . . . . 28 . 5 Data Loss (major) 10 | . . . . . 7 2 1 Misfires 9 | . . . . . 6 1 2 Alerts 6 | . . . . . 6 . . Misdirections 3 | . . . . . 2 1 . Weapon Failures 30 | . . . . . 22 5 3 Overload Shots 1 | . . . . . . . 1 Overflow Damage 81 | . . . 24 . 57 . . Projectiles 45 | . . . 24 . 21 . . Explosions 30 | . . . . . 30 . . Melee 6 | . . . . . 6 . . Knockbacks 34 | . . . 17 5 12 . . Impact 6 | . . . 1 . 5 . . Kinetic 26 | . . . 15 5 6 . . Secondary 2 | . . . 1 . 1 . . Self-Inflicted Damage 25 | . 25 . . . . . . Shots 1 | . 1 . . . . . . Rammed 19 | . 1 . 7 3 8 . . Targets Rammed 20 | . 1 . 7 4 8 . . Kicked . | . . . . . . . . Crushed 1 | . . . . 1 . . . Highest Temperature 350 | . 243 . 300 350 274 195 265 Average Temperature 95 | . 102 . 100 80 92 84 111 Received Heat Transfer 1681 | . 78 . 378 180 991 24 30 Effects 3 | . . . . 3 . . . Interference 3 | . . . . 3 . . . Siege Activations . | . . . . . . . . Martial Activations . | . . . . . . . . Shielding Activations . | . . . . . . . . Robots Disrupted . | . . . . . . . . Combat Hostiles . | . . . . . . . . Robots Corrupted 2 | . . . . . 2 . . Combat Hostiles 1 | . . . . . 1 . . Parts Fried 4 | . . . . . 4 . . Impact Corruptions 2 | . . . . . 2 . . Robots Melted 1 | . . . . . . . 1 Combat Hostiles 1 | . . . . . . . 1 Parts Melted 11 | . 2 . . . 7 2 . Heat Transferred 2542 | . 868 703 . 50 329 296 296 Parts Sabotaged . | . . . . . . . . Parts Stolen . | . . . . . . . . Parts Stripped . | . . . . . . . . Power Chain Reactions 1 | . 1 . . . . . . Alert | -11 -10 -10 -8 -8 -7 -7 -7 ------- Run | Yrd Mat Sub Mat Gar Fac Sto Rec Maximum Alert Level 5 | . . . . 4 5 3 1 Low Security (%) 23 | 100 100 . 100 17 . . 79 Level 1 4 | . . . . 14 . . 20 Level 2 12 | . . . . 22 14 4 . Level 3 17 | . . . . 23 18 95 . Level 4 40 | . . . . 22 65 . . Level 5 . | . . . . . . . . High Security . | . . . . . . . . Max Security . | . . . . . . . . Peak Influence 1645 | . 67 . 199 1208 1645 756 273 Initial 748 | . . . . 89 634 748 271 Average 838 | . 21 . 123 669 1198 732 120 Influence Increases 4070 | . 129 20 438 1209 2141 68 65 Destroy 0b10 Robot/C 2340 | . 60 20 200 800 1240 20 . Destroy 0b10 Robot/NC 185 | . 20 . 60 . 100 5 . Destroy Leader 416 | . 16 . 52 20 316 12 . Allied During Kill 82 | . . . . 80 2 . . Successful Hack 107 | . 13 . 25 14 30 8 17 Disable Machine 315 | . . . 75 15 180 15 30 Anti-Garrison Action 250 | . . . . 250 . . . Destroy Structure 165 | . 5 . 26 15 93 8 18 Partial Spotted 15 | . . . . . 15 . . Lose Combat Pursuer 195 | . 15 . . 15 165 . . Influence Decreases 4068 | . 129 20 301 138 1704 1017 759 Entered New Map 1944 | . . . . 48 574 897 425 Time Decay 1644 | . 129 20 271 . 770 120 334 Lost Part 170 | . . . 30 20 120 . . Lost Ally 160 | . . . . 70 90 . . Purge Threat 150 | . . . . . 150 . . Squads Dispatched 41 | . . . 3 . 36 2 . Investigation 4 | . . . 1 . 2 1 . Extermination 9 | . . . . . 9 . . Reinforcement 5 | . . . . . 4 1 . Assault 11 | . . . 1 . 10 . . Garrison 12 | . . . 1 . 11 . . Intercept . | . . . . . . . . Searches Triggered . | . . . . . . . . Construction Impeded 2 | . . . . . 1 1 . Haulers Reinforced . | . . . . . . . . Active Scanning Responses . | . . . . . . . . Cargo Convoy Interrupts . | . . . . . . . . Stealth | -11 -10 -10 -8 -8 -7 -7 -7 --------- Run | Yrd Mat Sub Mat Gar Fac Sto Rec Distress Signals 9 | . 1 . 4 . 3 . 1 Communications Jammed . | . . . . . . . . Distress Signals . | . . . . . . . . Times Spotted 164 | . 6 1 18 44 88 3 4 Peak Tracking Total 9 | . 3 . 5 9 5 1 1 Tactical Retreats 13 | . 1 . . 1 10 . 1 Traps | -11 -10 -10 -8 -8 -7 -7 -7 ------- Run | Yrd Mat Sub Mat Gar Fac Sto Rec Traps Triggered 11 | . . . . 2 8 1 . Indirectly . | . . . . . . . . Trap Hack Attempts . | . . . . . . . . Triggered . | . . . . . . . . Disarmed . | . . . . . . . . Reprogrammed . | . . . . . . . . Reused . | . . . . . . . . Traps Extracted . | . . . . . . . . Installed . | . . . . . . . . Triggered . | . . . . . . . . Machines | -11 -10 -10 -8 -8 -7 -7 -7 ---------- Run | Yrd Mat Sub Mat Gar Fac Sto Rec Machines Disabled 24 | . . . 5 4 12 1 2 Max in Single Turn 4 | . . . 1 1 4 1 1 Garrison Access 3 | . . . . . 2 1 . Garrison Relay 3 | . . . . 3 . . . Phase Generator 1 | . . . . 1 . . . Machines Repaired . | . . . . . . . . Machines Dismantled . | . . . . . . . . Machines Sabotaged . | . . . . . . . . Overloaded Fab Kills . | . . . . . . . . Hacking | -11 -10 -10 -8 -8 -7 -7 -7 --------- Run | Yrd Mat Sub Mat Gar Fac Sto Rec Machines Accessed 36 | . 3 . 4 2 20 2 5 Terminals 23 | . 2 . 3 2 13 1 2 Fabricators 2 | . . . . . 2 . . Repair Stations . | . . . . . . . . Recycling Units 4 | . 1 . . . . . 3 Scanalyzers 1 | . . . . . 1 . . Garrison Access 6 | . . . 1 . 4 1 . Total Hacks 83 | . 12 . 7 4 42 3 15 Successful 32 | . 7 . 4 1 14 2 4 Failed 51 | . 5 . 3 3 28 1 11 Catastrophic 10 | . . . . 1 6 . 3 Database Lockouts . | . . . . . . . . Manual 46 | . 5 . 4 1 24 1 11 Terminals 56 | . 11 . 5 4 31 2 3 Fabricators 4 | . . . . . 4 . . Repair Stations . | . . . . . . . . Recycling Units 13 | . 1 . . . . . 12 Scanalyzers 3 | . . . . . 3 . . Garrison Access 7 | . . . 2 . 4 1 . Terminal Hacks 13 | . 5 . 2 . 4 1 1 Prototype ID Bank 2 | . 1 . 1 . . . . Branch Access Points 3 | . . . 1 . 1 1 . Emergency Access Points 1 | . 1 . . . . . . Terminal Index 2 | . 1 . . . 1 . . Unreport Threat 1 | . . . . . 1 . . Locate Traps 2 | . 1 . . . 1 . . Zone Layout 2 | . 1 . . . . . 1 Fabricator Hacks 2 | . . . . . 2 . . Network Status 1 | . . . . . 1 . . Build 1 | . . . . . 1 . . Repair Station Hacks . | . . . . . . . . Recycling Unit Hacks 2 | . 1 . . . . . 1 Retrieve Components 2 | . 1 . . . . . 1 Scanalyzer 2 | . . . . . 2 . . Retrieve Study 2 | . . . . . 2 . . Garrison Access Hacks 6 | . . . 1 . 4 1 . Unlock Access 3 | . . . 1 . 2 . . Seal Access 3 | . . . . . 2 1 . Unauthorized Hacks 7 | . 1 . 1 1 2 . 2 Terminals 4 | . 1 . 1 1 1 . . Botnet 4 | . 1 . 1 1 1 . . Fabricators 1 | . . . . . 1 . . Report 1 | . . . . . 1 . . Repair Stations . | . . . . . . . . Recycling Units 2 | . . . . . . . 2 Reject 1 | . . . . . . . 1 Mask 1 | . . . . . . . 1 Scanalyzers . | . . . . . . . . Garrison Access . | . . . . . . . . Data Cores Recovered 1 | . . . . . 1 . . Used . | . . . . . . . . Hacking Detections 27 | . 2 . 2 2 15 2 4 Full Trace Events 3 | . . . . . . 1 2 Feedback Events 1 | . . . . . . 1 . Corruption 1 | . . . . . . 1 . Feedback Blocked . | . . . . . . . . Robot Schematics Acquired . | . . . . . . . . Robots Built 4 | . . . . . 4 . . Authchips . | . . . . . . . . Time 134 | . . . . . 134 . . Total Robot Build Rating 16 | . . . . . 16 . . Part Schematics Acquired . | . . . . . . . . Parts Built . | . . . . . . . . Authchips . | . . . . . . . . Time . | . . . . . . . . Total Part Build Rating . | . . . . . . . . Part Studies Acquired 2 | . . . . . 2 . . Parts Repaired . | . . . . . . . . Time . | . . . . . . . . Parts Recycled . | . . . . . . . . Recycled Matter . | . . . . . . . . Retrieved Matter . | . . . . . . . . Retrieved Components 3 | . 1 . . . . . 2 Parts Scanalyzed . | . . . . . . . . Part Schematics Acquired . | . . . . . . . . Parts Damaged . | . . . . . . . . Bothacking | -11 -10 -10 -8 -8 -7 -7 -7 ------------ Run | Yrd Mat Sub Mat Gar Fac Sto Rec Used RIF Installer 1 | . . . . 1 . . . Hotswap 1 | . . . . 1 . . . Robots Hacked 3 | . . . . 1 2 . . Non-combat 3 | . . . . 1 2 . . Combat . | . . . . . . . . Robot Hacks Applied 3 | . . . . 1 2 . . formatsys_low 3 | . . . . 1 2 . . Relay Couplers Released 17 | . . . . 17 . . . Machine Destruction 14 | . . . . 14 . . . Programmers 3 | . . . . 3 . . . Attached 2 | . . . . 1 1 . . Fabnet Peak Effective % . | . . . . . . . . Robots Rewired 2 | . . . . 2 . . . Allies Hacked 1 | . . . . 1 . . . Hacks Repelled . | . . . . . . . . Allies | -11 -10 -10 -8 -8 -7 -7 -7 -------- Run | Yrd Mat Sub Mat Gar Fac Sto Rec Total Allies 11 | . . . . 5 6 . . Largest Group 5 | . . . . 5 4 . . Highest-Rated Group 125 | . . . . 125 48 . . Highest-Rated Ally 31 | . . . . 31 25 . . Total Orders 3 | . . . . 1 2 . . AID 3 | . . . . 1 2 . . Ally Attacks 54 | . . . . 40 14 . . Total Damage 824 | . . . . 664 160 . . Kills 12 | . . . . 11 1 . . Allies Corrupted . | . . . . . . . . Allies Melted . | . . . . . . . . X0-1V1 Amusement Gains 129 | . 6 . 5 . 108 10 . Good Acts 77 | . . 2 2 49 21 1 2 Bad Acts 70 | . . 1 9 28 28 2 2 Intel | -11 -10 -10 -8 -8 -7 -7 -7 ------- Run | Yrd Mat Sub Mat Gar Fac Sto Rec Active Infowar (turns) 4086 | . . . . . 4086 . . Optics 4086 | . . . . . 4086 . . Robot Analysis Total . | . . . . . . . . Derelict Logs Recovered . | . . . . . . . . Drone Launches . | . . . . . . . . Drone Recoveries . | . . . . . . . . Exploration | -11 -10 -10 -8 -8 -7 -7 -7 ------------- Run | Yrd Mat Sub Mat Gar Fac Sto Rec Turns Passed 9221 | 60 444 315 688 1739 4949 251 775 Spaces Moved 3893 | 43 201 105 265 773 2143 67 296 Core 15 | 15 . . . . . . . Treads 3759 | 4 106 105 265 773 2143 67 296 Legs 119 | 24 95 . . . . . . Wheels . | . . . . . . . . Hover . | . . . . . . . . Flight . | . . . . . . . . Fastest Speed 50 | 50 120 240 160 160 158 233 233 Average Speed 194 | 99 174 240 177 191 192 233 233 Slowest Speed 243 | 160 240 240 240 240 243 233 233 Overloaded Moves . | . . . . . . . . Propulsion Burnouts . | . . . . . . . . Robots Hopped . | . . . . . . . . Potential Cave-ins 2 | . . . . . 2 . . Cave-ins Triggered . | . . . . . . . . Exploration Rate (%) 36 | 3 39 8 27 88 60 18 48 Regions Visited 7 Branch Regions 3 Pre-discovered Areas . | . . . . . . . . Known Exits Taken 3 | . . . 1 . 1 1 . Unknown Exits Taken 3 | 1 1 1 . . . . . Scrap Searched . | . . . . . . . . Spaces Dug 41 | . . . . . 28 . 13 Terrain Destroyed 189 | . 4 . 27 1 129 7 21 Melee . | . . . . . . . . Projectile 106 | . . . 27 1 50 7 21 AOE 81 | . 4 . . . 77 . . Terrain Rammed . | . . . . . . . . Walls Destroyed . | . . . . . . . . Machines Disabled . | . . . . . . . . Actions | -11 -10 -10 -8 -8 -7 -7 -7 --------- Run | Yrd Mat Sub Mat Gar Fac Sto Rec Total 4898 | 59 261 132 379 949 2629 137 352 Wait 327 | . 24 6 23 33 160 52 29 Move 3887 | 42 200 104 264 773 2142 66 296 Hop . | . . . . . . . . Pick Up 82 | 7 4 3 15 19 28 6 . Fast Attach 29 | 5 4 . 6 2 11 . 1 Attach 30 | 3 1 . 4 3 19 . . Detach 2 | 2 . . . . . . . Swap 55 | . 3 1 7 13 30 . 1 Drop 73 | . 7 . 9 21 30 . 6 Fire 388 | . 17 18 44 76 201 13 19 Melee 6 | . . . . 6 . . . Ram . | . . . . . . . . Kick . | . . . . . . . . Crush 19 | . 1 . 7 3 8 . . Escape Stasis . | . . . . . . . . Rewire . | . . . . . . . . Trap . | . . . . . . . . Miscellaneous . | . . . . . . . . Route ------- -11/Scrapyard -10/Materials (discovered 3 exits: [*Min x2] / [*Sub]) -10/Subcaves (discovered 2 exits: *Mat / [Scr]) -8/Materials (discovered 2 exits: *Fac / Gar) -8/Garrison (discovered 3 exits: *Fac x3) -7/Factory (discovered 7 exits: *Fac x2 / *Sto / *Low x2 / Gar / Gar) -7/Storage -7/Recycling (discovered 1 exit: [*Fac]) History --------- Turn | Location | Event 7 | -11/Scrapyard | Discovered new exit (range 15) 61 | -11/Scrapyard | Entered Materials 69 | -10/Materials | Discovered new exit (range 16) 323 | -10/Materials | Build established: Mutant 354 | -10/Materials | Discovered new exit (range 14) 484 | -10/Materials | Discovered new exit (range 8) 503 | -10/Materials | Prayed at D.C.S.S. Altar Unit 505 | -10/Materials | Entered Subcaves 506 | -10/Subcaves | Approached by a straggling Scientist 541 | -10/Subcaves | Energy capacity permanently improved by X0-1V1 (+200; -100 max core) 606 | -10/Subcaves | A swath of the cavern ceiling suddenly collapsed 804 | -10/Subcaves | Discovered new exit (range 6) 820 | -10/Subcaves | Entered Materials 820 | -8/Materials | Evolved 4 slots: Propulsion x1, Utility x2, Weapon x1 847 | -8/Materials | Identified exit to Garrison 897 | -8/Materials | Garrison activated, responded to threat 952 | -8/Materials | X0-1V1 vaporized surrounding terrain (radius 23) 1083 | -8/Materials | X0-1V1 upgraded hostiles (x1) 1126 | -8/Materials | Lost 3 parts (1n1u1w) 1373 | -8/Materials | Discovered new exit (range 16) 1389 | -8/Materials | X0-1V1 redirected Transport squads to designated parking area 1474 | -8/Materials | Energy generation permanently improved by X0-1V1 (+10; -100 max core) 1493 | -8/Materials | Build established: Gunner 1508 | -8/Materials | Entered Garrison 1526 | -8/Garrison | Triggered checkpoint 1571 | -8/Garrison | Installed Relay Interface Framework 1748 | -8/Garrison | Triggered checkpoint 1798 | -8/Garrison | Triggered checkpoint 1965 | -8/Garrison | Expanded RIF knowledge: Hotswap 2003 | -8/Garrison | Garrison Relay disabled 2070 | -8/Garrison | X0-1V1 sent hostile B-36 Bruiser (x1) 2136 | -8/Garrison | Discovered new exit (range 8) 2194 | -8/Garrison | Triggered checkpoint 2228 | -8/Garrison | Triggered checkpoint 2262 | -8/Garrison | Triggered checkpoint 2296 | -8/Garrison | Build established: Tank 2304 | -8/Garrison | Ranged accuracy permanently improved by X0-1V1 (+6%; -60 max core) 2312 | -8/Garrison | X0-1V1 activates XOMVISION 2318 | -8/Garrison | Discovered new exit (range 8) 2330 | -8/Garrison | X0-1V1 destroyed Phase Generator 2330 | -8/Garrison | Phase Generator disabled 2352 | -8/Garrison | Triggered checkpoint 2360 | -8/Garrison | Weapon slot count temporarily expanded by X0-1V1 (+2) 2376 | -8/Garrison | Identified exit to Factory 2376 | -8/Garrison | X0-1V1 revealed exit location to -7/Factory 2420 | -8/Garrison | X0-1V1 vaporized surrounding terrain (radius 17) 2420 | -8/Garrison | Rescued a captive Derelict 2420 | -8/Garrison | Rescued a captive Derelict 2448 | -8/Garrison | Garrison Relay disabled 2451 | -8/Garrison | X0-1V1 whisked you away to safety 2464 | -8/Garrison | Triggered checkpoint 2527 | -8/Garrison | System corruption reached 10% 2562 | -8/Garrison | Triggered checkpoint 2567 | -8/Garrison | X0-1V1 rewrote Commando 3b IFF filter 2570 | -8/Garrison | X0-1V1 mutated your Propulsion slot to Weapon slot 2591 | -8/Garrison | X0-1V1 sent hostile S-10 Pest (x3) 2626 | -8/Garrison | Garrison Relay disabled 2638 | -8/Garrison | X0-1V1 activates XOMVISION 2641 | -8/Garrison | X0-1V1 sent you into danger 2669 | -8/Garrison | X0-1V1 whisked you away to safety 2852 | -8/Garrison | X0-1V1 upgraded hostiles (x1) 2856 | -8/Garrison | X0-1V1 whisked you away to safety 2858 | -8/Garrison | Build established: Executioner 2941 | -8/Garrison | X0-1V1 activates XOMVISION 3198 | -8/Garrison | Triggered checkpoint 3237 | -8/Garrison | X0-1V1 sent hostile X-57 Shotgunner (x3) 3243 | -8/Garrison | Weapon slot count temporarily expanded by X0-1V1 (+4) 3247 | -8/Garrison | Entered Factory 3247 | -7/Factory | Evolved 2 slots: Propulsion x1, Utility x1 3250 | -7/Factory | X0-1V1 enhanced Transport squad support 3285 | -7/Factory | X0-1V1 sent you into danger 3288 | -7/Factory | X0-1V1 upgraded hostiles (x2) 3350 | -7/Factory | Garrison activated, responded to threat 3548 | -7/Factory | Build established: Scavenger-Executioner 3849 | -7/Factory | P-60 Hacker assimilated allied Smith 4a 3953 | -7/Factory | X0-1V1 sent you to a vault 3956 | -7/Factory | X0-1V1 redirected Transport squads to designated parking area 4047 | -7/Factory | First assault squad dispatched 4333 | -7/Factory | Build established: Scavenger-Tank 4548 | -7/Factory | X0-1V1 foreshadows a heat wave 4589 | -7/Factory | Destroyed 7 combat bots 4662 | -7/Factory | Identified exit to Factory 4662 | -7/Factory | X0-1V1 revealed exit location to -6/Factory 4769 | -7/Factory | Ambient heat levels rising (+10) 4787 | -7/Factory | Build established: Tank 4909 | -7/Factory | Garrison activated, responded to threat 5013 | -7/Factory | Ambient heat levels rising (+10) 5039 | -7/Factory | X0-1V1 whisked you away to safety 5126 | -7/Factory | X0-1V1 upgraded hostiles (x1) 5275 | -7/Factory | Ambient heat levels falling (-10) 5288 | -7/Factory | Build established: Scavenger-Skirmisher 5629 | -7/Factory | Ambient heat levels falling (-10) 5660 | -7/Factory | System corruption reached 10% 5667 | -7/Factory | Build established: Skirmisher 5768 | -7/Factory | X0-1V1 sent hostile H-61 Shepherd (x1) 5831 | -7/Factory | System corruption reached 30% 5956 | -7/Factory | Fabricated S-27 Virus (x4) 6131 | -7/Factory | Lost 4 allies 6235 | -7/Factory | Core integrity fell below 50% 6668 | -7/Factory | Discovered new exit (range 7) 6778 | -7/Factory | Garrison activated, responded to threat 6851 | -7/Factory | Identified exit to Garrison 7101 | -7/Factory | X0-1V1 activates XOMVISION 7107 | -7/Factory | X0-1V1 announced a LAN party 7138 | -7/Factory | Discovered exit to Factory (range 20) 7143 | -7/Factory | Identified exit to Garrison 7296 | -7/Factory | X0-1V1 sent hostile G-47 Trooper (x3) 7725 | -7/Factory | Lost 3 parts (1p1u1w) 7896 | -7/Factory | Build established: Hacker-Skirmisher 7898 | -7/Factory | Identified exit to Storage 7898 | -7/Factory | Identified exit to Lower Caves 8141 | -7/Factory | Core integrity fell below 20% 8196 | -7/Factory | Entered Storage 8242 | -7/Storage | Identified exit to Recycling 8396 | -7/Storage | Used back door to open Recycling access 8439 | -7/Storage | Build established: Tank 8447 | -7/Storage | Entered Recycling 8861 | -7/Recycling | Discovered new exit (range 11) 9222 | -7/Recycling | Destroyed by UV-ZTJ(R) with Subdweller Laser Last Messages --------------- 09081_ System corrupted: Heat flow error (+286). 09096_ System corrupted: Component data lost. 09101_ Acquired 61 matter. 09114_ System corrupted: Matter fused (-5). 09127_ System corrupted: Cld. Particle Cannon failed to cycle. 09129_ TWVKSLFYPWIM8D#>FIC8 09145_ %5OHE1W>&91MW6Q7Q#0QBGD#C 09145_ Acquired Unknown Protection. 09145_ Identified Hrd. Medium Armor Plating. 09147_ Dropped Hrd. Medium Armor Plating. 09147_ Acquired Imp. Heat Sink. 09151_ Acquired 74 matter. 09164_ System corrupted: Matter fused (-7). 09184_ System corrupted: Energy discharge (-124). 09187_ U-05 Engineer builds a Wall. 09202_ System corrupted: Substantial component data lost. 09221_ 1 J8Z7BH0OH1Q I WK7F 09221_ System corrupted: Gauss Rifle+ jammed. 09221_ Slug penetrates UV-ZTJ(R). 09222_ X0-1V1 snickers! Map ----- +----------------------------------------------------+ | | | | | | | ?????????????????????????????????????????????????? | | ?????????????????????????????????????????????????? | | ?????????????????????????????????????????????????? | | ?????????????????????????????????????????????????? | | ?????????????????????????????????????????????????? | | ?????????????????????????????????????????????????? | | ?????????????????????????????????????????????????? | | ?????????????????????????????????????????????????? | | ?????????????????????????????????????????????????? | | ??????????????????#########??????????????????????? | | ??????????????????# #??????????????????????? | | ??????????????????# #??????????????????????? | | ??????????????????# #????????????????????### | | ??????##########??# #???????????????#??? | | ??????# ] #?#####+####???????????????# """ " | | # ????# % ## #??# #??????????????????# """ " | | ? ???+!% !# #???# #??????????????????# """ " | | ?# ! "####?# ##?????????????????# """ " | | # ! " #####+####################? """ " | | ##+##+###### |! +* ! #??? | | #????# u !!############## ######+# | | % ###??# !#????????????# | | """= ""#??# @ #????????????# | | ### """ ""#??# ! #????????????# | | ??# "" T"#?## [[ #????###### ## ## | | ??#% = !""#?#r *[=!! #???# + #? | | ??#& [ ""#?## [! | #???# |### #? | | """ &%""" ############R;;#???# =%??# ## | | "T =*""" =%=&###???# *### ! " | | """ "" &###???# ?#"" Y" | | ### ""#???# ??#"Y "" | | ??# =Y"#???# ??#" ## | | ??# """ ]""#???# |!???###] ! #? | | ??# "" ! ###???# !%=??#?# #? | | ??# """ =%| #?????######+##### #? | | ??# %!! !%=?=?? ! = #? | | ??+ = !=!%?? * *! ! ## | | ??# ?=%! """"%!"" " "" | | ??###+#+################+##/###??????"""= """" T | | ????????????????????????????????# """" """" "" | | ????????????????????????????????# !%! ## | | ????????????????????????????????# ! "" | | ???????????????????????????????? """" """" ! | | ??????????????????????????????????!??""" """" "" | | ???????????????????????????????????="""" """" ## | | ????????????????????????????????# ! | | ????????????????????????????????# | +----------------------------------------------------+ Best States ------------- Heat Dissipation 106 Energy Generation 26 Energy Capacity 1780 Matter Stores 893 Matter Capacity 1000 Sight Range 26 Terrain Scan Density 10 Additional Mass Support 9 Armor Coverage 600 Resistance: KI 18 Resistance: TH 22 Evasion (%) 55 Targeting Accuracy 5 Recoil Reduction 3 Offensive Hacking 20 Relay Coupler Types 1 Relay Coupler Value 23 Item Schematics ----------------- None Robot Schematics ------------------ None Fabricated ------------ S-27 Virus | x4 | -7/Factory | Preloaded Repaired ---------- Nothing Studied --------- Gauss Rifle | -7/Factory | Hacked Remote Datajack | -7/Factory | Hacked Alien Tech Used ----------------- None Achievements -------------- None Challenges ------------ None Game ------ Seed SmallDrainedPenetrator Manual? 0 Play Time 01:10:43 Cumulative 541.5 hours Start 2026.08.02 @ 13:11:05 End 2026.08.02 @ 14:17:56 Sessions 1 Manual Loads 0 Difficulty Rogue Special Mode None Game No. 267 Rogue 267 Adventurer 0 Explorer 0 Win Type - Total 18 Types 10/0/3/1/1/0/0/1/0/2 Lore% 86 Gallery% 82 Achievement% 71 Wizard Run 0 Options --------- Layout 0 ASCII 0 Keyboard 0 Movement Mouse Keybinds 0 Fullscreen 1 Font 18/SmallcapsGlow Map View 76x50 Zoom Use 0% Tactical HUD 1 Map Filters NONE Filters NONE Steam 1 RUN: ff9e04be-3132-4a0d-a1c7-de1f52c0dc31